Cogmind - Beta 17.1 @@@ ROGUE MODE // 2026.09.07 @ 12:15:09 Player: pindsvinesluger Result: Self-destructed Performance ------------- Evolutions (2) 1000 Regions Visited (4) 800 Robots Destroyed (30) 150 Value Destroyed (727) 727 Prototype IDs (2) 40 Alien Tech Used (0) 0 Bonus (-19) -19 TOTAL SCORE: 2698 Bonus ------- Follower Combat Kills 120 Friendly Fire -139 Cogmind --------- Core Integrity 411/550 Matter 280/300 Energy 19/125 System Corruption 0% Temperature Cool (9) Movement Walking (90) Location -8/Materials Parts ------- > --- POWER (1) -------- Light Ion Engine > --- PROPULSION (4) --- VSS Leg VSS Leg VSS Leg VSS Leg > --- UTILITY (4) ------ Small Storage Unit Signal Interpreter ECM Suite > --- WEAPON (2) ------- (None) > --- INVENTORY (8) ---- Flight Unit Flight Unit Peak State ------------ > --- POWER ------------ Light Nuclear Core > --- PROPULSION ------- VSS Leg VSS Leg VSS Leg VSS Leg > --- UTILITY ---------- Small Storage Unit Signal Interpreter ECM Suite > --- WEAPON ----------- Small Laser Light Assault Rifle > --- INVENTORY -------- VSS Leg VSS Leg VSS Leg Small Laser [Rating: 21] Favorites ----------- Power Light Nuclear Core Engine Ion Engine Power Core Light Nuclear Core Propulsion Aluminum Leg Leg Aluminum Leg Wheel Wheel Flight Unit Flight Unit Utility Signal Interpreter Device Sensor Array Storage Small Storage Unit Processor Signal Interpreter Weapon Light Assault Rifle Energy Gun Small Laser Energy Cannon EM Pulse Cannon Ballistic Gun Light Assault Rifle Launcher Grenade Launcher Build | -11 -10 -9 -9 -8 ------- Run | Yrd Mat Mat Min Mat Slots Evolved 4 | . . 2 . 2 Power . | . . . . . Propulsion 2 | . . 2 . . Utility 2 | . . . . 2 Weapon . | . . . . . Parts Attached 45 | 6 6 8 9 16 Power 6 | 2 1 1 1 1 Engine 4 | 2 1 . . 1 Core 2 | . . 1 1 . Reactor . | . . . . . Propulsion 26 | 1 2 6 4 13 Treads . | . . . . . Leg 14 | . 2 2 4 6 Wheel 1 | 1 . . . . Hover . | . . . . . Flight 11 | . . 4 . 7 Utility 4 | 1 1 . 1 1 Device 2 | . 1 . . 1 Storage 1 | 1 . . . . Processor 1 | . . . 1 . Hackware . | . . . . . Protection . | . . . . . Artifact . | . . . . . Weapon 9 | 2 2 1 3 1 Energy Gun 3 | 1 . . 2 . Energy Cannon 1 | . . . . 1 Ballistic Gun 4 | 1 2 1 . . Ballistic Cannon . | . . . . . Launcher 1 | . . . 1 . Special Weapon . | . . . . . Impact Weapon . | . . . . . Slashing Weapon . | . . . . . Piercing Weapon . | . . . . . Special Melee Weapon . | . . . . . Unidentified Prototypes . | . . . . . Parts Lost 21 | . . 2 9 10 Power 2 | . . . 1 1 Propulsion 11 | . . 2 4 5 Utility 1 | . . . 1 . Weapon 7 | . . . 3 4 Highest Loss Streak 6 | . . 2 6 6 To Critical Strikes . | . . . . . Average Backups 4 | 3 6 5 4 4 Power . | . 1 1 . . Propulsion 1 | 1 2 . . 3 Utility 1 | . . 2 1 . Weapon 1 | 1 1 1 1 . Tool/Special . | . . . . . Unused Backups 9 | 1 4 . . 4 Power . | . . . . . Propulsion 6 | 1 1 . . 4 Utility 1 | . 1 . . . Weapon 2 | . 2 . . . Tool/Special . | . . . . . Average Slot Usage (%) 76 | . 91 97 63 80 Engine 3 | . 14 2 . 1 Core 5 | . . 8 6 7 Leg 20 | . 25 12 21 17 Flight 7 | . . 28 5 10 Device 6 | . 6 11 3 9 Storage 6 | . 14 11 1 9 Processor 6 | . . . 10 9 Energy Gun 3 | . 7 . 1 8 Ballistic Gun 13 | . 20 22 12 4 Peak Build Rating 21 | 5 7 13 13 21 Average Rating 9 | 2 6 11 8 15 On Entrance 7 | . 5 7 13 11 Avg Prop Armor Cover (%) 4 | . . 6 3 . Naked Turns . | . . . . . Heaviest Build 19 | 14 15 13 12 19 Greatest Support 48 | 10 20 26 43 48 Greatest Overweight (x) 4 | 1 1 . . 4 Average Overweight (x) . | . . . . . Largest Inventory Capacity 8 | 8 8 8 8 8 Average Capacity 6 | 6 8 8 5 8 Most Carried 8 | 5 8 8 5 8 Average Carried 4 | 3 6 5 4 4 Final Capacity 8 | 8 8 8 8 8 Final Carried 8 | 4 8 5 3 2 Class Distribution -------------------- 82% | Mutant 12% | Scavenger-Mutant 5% | Scavenger-Sprinter Dominant Class ---------------- Mutant | -10/Materials Mutant | -9/Materials Mutant | -9/Mines Mutant | -8/Materials Resources | -11 -10 -9 -9 -8 ----------- Run | Yrd Mat Mat Min Mat Matter Collected 978 | 199 231 104 273 171 Remotely . | . . . . . Salvage Created 890 | . 318 147 346 79 Parts 55 | . 21 5 20 9 Haulers Intercepted . | . . . . . Recyclers Shooed . | . . . . . Parts Field Recycled . | . . . . . Retrieved Matter . | . . . . . Parts Self-Destructed . | . . . . . Prevented . | . . . . . Parts Restored . | . . . . . Kills | -11 -10 -9 -9 -8 ------- Run | Yrd Mat Mat Min Mat Combat Hostiles Destroyed 27 | . 10 3 9 5 Guns 26 | . 10 3 8 5 AOE 1 | . . . 1 . Classes Destroyed 7 | . 3 1 3 . Worker 1 | . . . 1 . Builder 1 | . . . 1 . Watcher 1 | . 1 . . . Swarmer 8 | . 3 . . 5 Grunt 17 | . 7 2 8 . Duelist 1 | . . 1 . . Assembled 1 | . . . 1 . Thug 1 | . . . 1 . Best Kill Streak 4 | . 3 2 4 3 Combat Bots Only 3 | . 3 2 3 3 Max Kills in Single Turn 2 | . 2 1 1 1 Gunslinging 1 | . 1 . . . Exploded 1 | . . . 1 . Melee . | . . . . . Uniques/NPCs Destroyed . | . . . . . Combat | -11 -10 -9 -9 -8 -------- Run | Yrd Mat Mat Min Mat Hostile Shots Fired 265 | . 51 33 76 105 Missed 90 | . 15 12 27 36 Hits 175 | . 36 21 49 69 Projectile 175 | . 36 21 49 69 Critical Strikes 5 | . . . . 5 Damage Taken 2253 | . 342 248 733 930 Core 455 | . 61 53 202 139 Absorbed by Shields . | . . . . . Regen/Repaired (Parts) 17 | . . . . 17 Core Remaining (%) 70 | 100 75 . 36 . Volleys Fired 143 | . 38 24 66 15 Largest 2 | . 2 2 2 2 Hottest 103 | . 60 40 60 103 Shots Fired 267 | . 76 48 119 24 Gun 258 | . 76 48 114 20 Cannon 4 | . . . . 4 Launcher 5 | . . . 5 . Special . | . . . . . Kinetic 225 | . 60 48 110 7 Thermal 17 | . . . 4 13 Explosive 5 | . . . 5 . Electromagnetic 20 | . 16 . . 4 Robot Hit Streak 11 | . 11 10 8 3 Robot Miss Streak 7 | . 7 3 6 3 Penetration Max . | . . . . . Secondary Targets 3 | . 2 . . 1 Max Gunslinging Chain 1 | . 1 . . 1 Shots Hit Robots 153 | . 44 31 66 12 Core Hits 67 | . 19 10 32 6 Critical Kills . | . . . . . Critical Parts Destroyed 1 | . . . 1 . Critical Strikes 1 | . . . 1 . Destroy 1 | . . . 1 . Melee Attacks . | . . . . . Impact . | . . . . . Slashing . | . . . . . Piercing . | . . . . . Sneak Attacks . | . . . . . Combat Hostiles . | . . . . . Follow-up Attacks . | . . . . . Damage Inflicted 1659 | . 511 272 722 154 Guns 1503 | . 503 272 609 119 Cannons 22 | . . . . 22 Explosions 113 | . . . 113 . Melee . | . . . . . Ramming 21 | . 8 . . 13 Kinetic 1323 | . 420 272 588 43 Thermal 97 | . . . 21 76 Explosive 113 | . . . 113 . Electromagnetic 105 | . 83 . . 22 Impact . | . . . . . Slashing . | . . . . . Piercing . | . . . . . Highest Corruption 1 | . . 1 1 . Average Corruption 1 | . . 1 1 . Corruption Purged . | . . . . . Corruption Blocked . | . . . . . Effects 10 | . . 3 7 . Message Errors 3 | . . 1 2 . Matter Fused 3 | . . 2 1 . Energy Discharges 1 | . . . 1 . Parts Rejected 1 | . . . 1 . Data Loss (minor) 1 | . . . 1 . Misfires 1 | . . . 1 . Overload Shots . | . . . . . Overflow Damage 38 | . . . 38 . Projectiles . | . . . . . Explosions 38 | . . . 38 . Melee . | . . . . . Knockbacks . | . . . . . Impact . | . . . . . Kinetic . | . . . . . Secondary . | . . . . . Self-Inflicted Damage 158 | . . . 152 6 Shots 5 | . . . 5 . Rammed 1 | . . . . 1 Targets Rammed 2 | . 1 . . 1 Kicked 1 | . 1 . . . Crushed . | . . . . . Highest Temperature 136 | . 30 16 45 136 Average Temperature 18 | . 15 6 10 43 Received Heat Transfer 947 | . 120 111 338 378 Siege Activations . | . . . . . Martial Activations . | . . . . . Shielding Activations . | . . . . . Robots Disrupted . | . . . . . Combat Hostiles . | . . . . . Robots Corrupted . | . . . . . Combat Hostiles . | . . . . . Parts Fried . | . . . . . Impact Corruptions . | . . . . . Robots Melted . | . . . . . Combat Hostiles . | . . . . . Parts Melted . | . . . . . Heat Transferred 225 | . . . 50 175 Parts Sabotaged . | . . . . . Parts Stolen . | . . . . . Parts Stripped . | . . . . . Power Chain Reactions . | . . . . . Alert | -11 -10 -9 -9 -8 ------- Run | Yrd Mat Mat Min Mat Maximum Alert Level . | . . . . . Low Security (%) 100 | 100 100 100 100 100 Level 1 . | . . . . . Level 2 . | . . . . . Level 3 . | . . . . . Level 4 . | . . . . . Level 5 . | . . . . . High Security . | . . . . . Max Security . | . . . . . Peak Influence 90 | . 90 40 78 70 Initial 24 | . . 24 . 17 Average 19 | . 30 15 16 17 Influence Increases 827 | . 244 70 299 214 Destroy 0b10 Robot/C 600 | . 200 60 240 100 Destroy 0b10 Robot/NC 20 | . 5 . 15 . Destroy Leader 82 | . 32 10 20 20 Allied During Kill 7 | . . . 7 . Successful Hack 11 | . 7 . . 4 Destroy Structure 17 | . . . 17 . Partial Spotted 15 | . . . . 15 Lose Combat Pursuer 75 | . . . . 75 Influence Decreases 792 | . 186 128 253 225 Entered New Map 63 | . . 34 . 29 Time Decay 551 | . 186 90 169 106 Lost Part 178 | . . 4 84 90 Squads Dispatched 4 | . 2 1 . 1 Investigation 1 | . 1 . . . Extermination . | . . . . . Reinforcement 3 | . 1 1 . 1 Assault . | . . . . . Garrison . | . . . . . Intercept . | . . . . . Searches Triggered . | . . . . . Construction Impeded . | . . . . . Haulers Reinforced . | . . . . . Active Scanning Responses . | . . . . . Cargo Convoy Interrupts . | . . . . . Stealth | -11 -10 -9 -9 -8 --------- Run | Yrd Mat Mat Min Mat Distress Signals 3 | . . . 2 1 Communications Jammed . | . . . . . Distress Signals . | . . . . . Times Spotted 63 | . 12 16 15 20 Peak Tracking Total 11 | . 4 8 2 11 Tactical Retreats 3 | . . . . 3 Traps | -11 -10 -9 -9 -8 ------- Run | Yrd Mat Mat Min Mat Traps Triggered 1 | . 1 . . . Indirectly . | . . . . . Trap Hack Attempts . | . . . . . Triggered . | . . . . . Disarmed . | . . . . . Reprogrammed . | . . . . . Reused . | . . . . . Traps Extracted . | . . . . . Installed . | . . . . . Triggered . | . . . . . Machines | -11 -10 -9 -9 -8 ---------- Run | Yrd Mat Mat Min Mat Machines Disabled . | . . . . . Max in Single Turn . | . . . . . Machines Repaired . | . . . . . Machines Dismantled . | . . . . . Machines Sabotaged . | . . . . . Overloaded Fab Kills . | . . . . . Hacking | -11 -10 -9 -9 -8 --------- Run | Yrd Mat Mat Min Mat Machines Accessed 7 | . 3 1 . 3 Terminals 6 | . 3 1 . 2 Fabricators . | . . . . . Repair Stations 1 | . . . . 1 Recycling Units . | . . . . . Scanalyzers . | . . . . . Garrison Access . | . . . . . Total Hacks 18 | . 5 2 . 11 Successful 10 | . 3 . . 7 Failed 8 | . 2 2 . 4 Catastrophic 2 | . 1 1 . . Database Lockouts . | . . . . . Manual . | . . . . . Terminals 16 | . 5 2 . 9 Fabricators . | . . . . . Repair Stations 2 | . . . . 2 Recycling Units . | . . . . . Scanalyzers . | . . . . . Garrison Access . | . . . . . Terminal Hacks 8 | . 3 . . 5 Prototype ID Bank 1 | . . . . 1 Branch Access Points 1 | . 1 . . . Emergency Access Points 1 | . 1 . . . Terminal Index 1 | . . . . 1 Alert Level 1 | . . . . 1 Locate Traps 1 | . . . . 1 Dispatch Records 1 | . 1 . . . Security Status 1 | . . . . 1 Fabricator Hacks . | . . . . . Repair Station Hacks 2 | . . . . 2 Scan Component 1 | . . . . 1 Repair 1 | . . . . 1 Recycling Unit Hacks . | . . . . . Scanalyzer . | . . . . . Garrison Access Hacks . | . . . . . Unauthorized Hacks . | . . . . . Terminals . | . . . . . Fabricators . | . . . . . Repair Stations . | . . . . . Recycling Units . | . . . . . Scanalyzers . | . . . . . Garrison Access . | . . . . . Data Cores Recovered . | . . . . . Used . | . . . . . Hacking Detections 3 | . . 1 . 2 Full Trace Events 1 | . . 1 . . Feedback Events 1 | . . 1 . . Corruption 1 | . . 1 . . Feedback Blocked . | . . . . . Robot Schematics Acquired . | . . . . . Robots Built . | . . . . . Authchips . | . . . . . Time . | . . . . . Total Robot Build Rating . | . . . . . Part Schematics Acquired . | . . . . . Parts Built . | . . . . . Authchips . | . . . . . Time . | . . . . . Total Part Build Rating . | . . . . . Part Studies Acquired . | . . . . . Parts Repaired 1 | . . . . 1 Time 26 | . . . . 26 Parts Recycled . | . . . . . Recycled Matter . | . . . . . Retrieved Matter . | . . . . . Retrieved Components . | . . . . . Parts Scanalyzed . | . . . . . Part Schematics Acquired . | . . . . . Parts Damaged . | . . . . . Bothacking | -11 -10 -9 -9 -8 ------------ Run | Yrd Mat Mat Min Mat Used RIF Installer . | . . . . . Robots Hacked . | . . . . . Non-combat . | . . . . . Combat . | . . . . . Robot Hacks Applied . | . . . . . Relay Couplers Released . | . . . . . Fabnet Peak Effective % . | . . . . . Robots Rewired . | . . . . . Allies Hacked . | . . . . . Hacks Repelled . | . . . . . Allies | -11 -10 -9 -9 -8 -------- Run | Yrd Mat Mat Min Mat Total Allies 1 | . . . 1 . Largest Group 1 | . . . 1 . Highest-Rated Group 31 | . . . 31 . Highest-Rated Ally 31 | . . . 31 . Total Orders . | . . . . . Ally Attacks 25 | . . . 25 . Total Damage 292 | . . . 292 . Kills 5 | . . . 5 . Allies Corrupted . | . . . . . Allies Melted . | . . . . . Intel | -11 -10 -9 -9 -8 ------- Run | Yrd Mat Mat Min Mat Active Infowar (turns) 907 | . 229 228 376 74 Sensors 833 | . 229 228 376 . ECM 74 | . . . . 74 Robot Analysis Total . | . . . . . Derelict Logs Recovered . | . . . . . Drone Launches . | . . . . . Drone Recoveries . | . . . . . Exploration | -11 -10 -9 -9 -8 ------------- Run | Yrd Mat Mat Min Mat Turns Passed 2175 | 45 471 228 1073 358 Spaces Moved 1184 | 41 268 208 403 264 Core 13 | 10 . . . 3 Treads . | . . . . . Legs 856 | . 251 96 403 106 Wheels 48 | 31 17 . . . Hover . | . . . . . Flight 267 | . . 112 . 155 Fastest Speed 29 | 50 95 31 120 29 Average Speed 101 | 78 118 72 120 81 Slowest Speed 280 | 95 120 120 120 280 Overloaded Moves . | . . . . . Propulsion Burnouts . | . . . . . Robots Hopped 5 | . . 1 . 4 Potential Cave-ins . | . . . . . Cave-ins Triggered . | . . . . . Exploration Rate (%) 36 | 3 43 32 71 32 Regions Visited 4 Branch Regions 1 Pre-discovered Areas 1 | . . . 1 . Known Exits Taken 1 | . . . 1 . Unknown Exits Taken 3 | 1 1 1 . . Scrap Searched . | . . . . . Spaces Dug . | . . . . . Terrain Destroyed 26 | . . . 26 . Melee . | . . . . . Projectile . | . . . . . AOE 26 | . . . 26 . Terrain Rammed . | . . . . . Walls Destroyed . | . . . . . Machines Disabled . | . . . . . Actions | -11 -10 -9 -9 -8 --------- Run | Yrd Mat Mat Min Mat Total 1934 | 54 354 249 893 384 Wait 489 | . 22 . 408 59 Move 1172 | 40 267 205 402 258 Hop 3 | . . 1 . 2 Pick Up 32 | 7 12 3 3 7 Fast Attach 24 | 3 2 2 5 12 Attach 25 | 2 1 6 6 10 Detach 14 | . . 4 . 10 Swap 6 | 1 3 . 2 . Drop 24 | 1 8 4 1 10 Fire 143 | . 38 24 66 15 Melee . | . . . . . Ram 1 | . . . . 1 Kick 1 | . 1 . . . Crush . | . . . . . Escape Stasis . | . . . . . Rewire . | . . . . . Trap . | . . . . . Miscellaneous . | . . . . . Route ------- -11/Scrapyard -10/Materials (discovered 2 exits: *Mat / Min) -9/Materials -9/Mines -8/Materials History --------- Turn | Location | Event 10 | -11/Scrapyard | Discovered new exit (range 15) 46 | -11/Scrapyard | Entered Materials 241 | -10/Materials | Identified exit to Mines 315 | -10/Materials | Build established: Mutant 442 | -10/Materials | Discovered new exit (range 16) 517 | -10/Materials | Entered another Materials area 517 | -9/Materials | Evolved 2 slots: Propulsion x2 727 | -9/Materials | Discovered new exit (range 15) 745 | -9/Materials | Entered Mines 785 | -9/Mines | Escorted by a lone wolf Derelict 805 | -9/Mines | Learned location of Storage (-7) 1108 | -9/Mines | Excavation squad dispatched 1108 | -9/Mines | A large section of the Mines collapsed 1163 | -9/Mines | Lost 6 parts (1p2n1u2w) 1358 | -9/Mines | Excavation squad dispatched 1620 | -9/Mines | Core integrity fell below 50% 1810 | -9/Mines | Discovered new exit (range 7) 1816 | -9/Mines | Identified exit to Materials 1818 | -9/Mines | Entered Materials 1818 | -8/Materials | Evolved 2 slots: Utility x2 2029 | -8/Materials | Lost 3 parts (2n1w) 2044 | -8/Materials | Repaired Flight Unit 2153 | -8/Materials | Lost 6 parts (1p3n2w) 2176 | -8/Materials | Self-destructed Last Messages --------------- 02101_ Acquired Flight Unit. 02102_ K-01 Serf cleans the Terminal. 02103_ Acquired Flight Unit. 02104_ Acquired 19 matter. 02104_ Cesium-ion Thruster destroyed. 02106_ K-01 Serf cleans the Terminal. 02107_ Flight Unit destroyed. 02118_ K-01 Serf suffers critical hit (Burn). 02118_ K-01 Serf destroyed. 02121_ Acquired 23 matter. 02122_ Lgt. Nuclear Core destroyed. 02134_ K-01 Serf destroyed. 02137_ K-01 Serf collects debris. 02144_ Connecting with Terminal... You are entering the active sensor range of a Heavy class robot, which gives away their position but also has a chance to call more squads to reinforce the local area while you are within range. 02157_ W-25 Informer sends out distress signal. 02158_ Critical hit (Burn: +37). 02174_ Sml. Laser destroyed. Map ----- +----------------------------------------------------+ | %/ """ #????????????????????????????????? | | # """ #????????????????????????????????? | | ### # #????????????????????????????????? | | ??# # #????????????????????????????????? | | ??# ###########????????????????????????????????? | | ??# #??????????????????????????????????????????? | | ??# #??????????????????????? #????????????????? | | ??# ###############+######?? #????????????????? | | ??# * !%= #?? #????????????????? | | ??# = #?? #????????????????? | | ??# #########+#### """ #?# #????????????????? | | ??# #?????? ## """ #?# #????????????????? | | ??# #???? ]#T """ ### #????????????????? | | ??# #?? ## #????????????????? | | ??# ## ## #????????????????? | | ??# ##= #######+#### #????????????????? | | ??# ## # ## #????????????????? | | ??# ## # """ ## ##???????????????? | | ??# ############# """ # ##+###+#????????? | | ??# #???????????# """ / #????????? | | ?? ???????????# "" # #????????? | | ?? ???????????# S"" # ##### #????????? | | ?? T ???????????# "" ## ##???????????????? | | ?? ???????????# ## #????????????????? | | ??? ? ????????????############g #????????????????? | | ???????????????????# t @ g #???????????H????? | | ?????????????????+ u #????????????????? | | ?????????????????###+######+#####????????????????? | | ?????????????????????????????????????????????????? | | ?????????????????????????????????????????????????? | | ?????????????????????????????????????????????????? | | ?????????????????????????????????????????????????? | | ?????????????????????????????????????????????????? | | ?????????????????????????????????????????????????? | | ?????????????????????????????????????????????????? | | ?????????????????????????????????????????????????? | | ?????????????????????????????????????????????????? | | ?????????????????????????????????????????????????? | | ?????????????????????????????????????????????????? | | ?????????????????????????????????????????????????? | | ?????????????????????????????????????????????????? | | ?????????????????????????????????????????????????? | | ?????????????????????????????????????????????????? | | ?????????????????????????????????????????????????? | | | | | | | | | | | | | +----------------------------------------------------+ Best States ------------- Heat Dissipation 31 Energy Generation 14 Energy Capacity 250 Matter Stores 300 Matter Capacity 300 Sight Range 16 Robot Scan Range 14 Terrain Scan Density 10 ECM Strength 1 Evasion (%) 63 Item Schematics ----------------- None Robot Schematics ------------------ None Fabricated ------------ Nothing Repaired ---------- Flight Unit | 15% | -8/Materials Studied --------- None Alien Tech Used ----------------- None Achievements -------------- Part-time Mechanic Sprinter Challenges ------------ None Game ------ Seed CobblerSwarmRailcannon Manual? 0 Play Time 00:34:26 Cumulative 4.8 hours Start 2026.09.07 @ 11:01:04 End 2026.09.07 @ 12:15:09 Sessions 3 Manual Loads 0 Difficulty Rogue Special Mode None Game No. 9 Rogue 9 Adventurer 0 Explorer 0 Win Type - Total 0 Types 0/0/0/0/0/0/0/0/0/0 Lore% 4 Gallery% 7 Achievement% 9 Wizard Run 0 Options --------- Layout 0 ASCII 0 Keyboard 1 Movement Arrows Keybinds 0 Fullscreen 1 Font 18/SmallcapsGlow Map View 76x50 Zoom Use 0% Tactical HUD 1 Map Filters NONE Filters NONE Steam 1 RUN: af0b966c-4172-46f2-a674-d97ac2970b73